bitfinex/quotes_ETHUSD_20240716
["timestamp","ask_amount","ask_price","bid_price","bid_amount"]
[1721104463001,0.40883251,3464.5,3464.2,0.1191078]
[1721104463411,1.20007374,3464.9,3464.2,2.4804078]
[1721104463702,2.88576,3465.3,3464.3,3.43656]
[1721104463903,5.88576,3465.3,3464.3,0.55]
[1721104464108,2.88593,3465.1,3464.3,0.55]
[1721104464420,3.0,3465.0,3464.3,0.55]
[1721104464564,3.0,3465.0,3464.2,0.1191078]
[1721104464565,2.88635,3464.6,3464.2,0.1191078]
[1721104464874,2.2998,3464.7,3464.2,0.1191078]
[1721104464875,2.88647,3464.5,3464.2,0.1191078]
[1721104465083,5.18608,3464.7,3464.2,0.1191078]
[1721104465291,0.92723237,3464.6,3464.2,0.1191078]
[1721104467087,5.18605,3464.7,3464.2,0.1191078]
[1721104467407,2.88651,3464.4,3464.2,0.1191078]
[1721104467776,2.88658,3464.3,3464.2,0.1191078]
[1721104468877,5.77316,3464.3,3464.2,0.1191078]
[1721104469190,8.08006,3464.3,3464.2,0.1191078]
[1721104469398,9.446104,3464.3,3464.2,0.1191078]
[1721104476826,12.332684,3464.3,3464.2,0.1191078]
[1721104477428,15.332684,3464.3,3464.2,0.1191078]
[1721104481334,15.96401082,3464.3,3464.2,0.1191078]
[1721104481543,15.332684,3464.3,3464.2,0.1191078]
[1721104485021,12.446104,3464.3,3464.2,0.1191078]
[1721104486121,13.07717952,3464.3,3464.2,0.1191078]
[1721104487551,15.96375952,3464.3,3464.2,0.1191078]
[1721104488546,12.446104,3464.3,3464.2,0.1191078]
[1721104488757,13.07705612,3464.3,3464.2,0.1191078]
[1721104489051,13.07706205,3464.3,3464.2,0.1191078]
[1721104490323,15.96364205,3464.3,3464.2,0.1191078]
[1721104490729,13.07706205,3464.3,3464.2,0.1191078]
[1721104491550,15.96364205,3464.3,3464.2,0.1191078]
[1721104491743,12.446104,3464.3,3464.2,0.1191078]
[1721104491936,13.07702864,3464.3,3464.2,0.1191078]
[1721104492117,15.96360864,3464.3,3464.2,0.1191078]
[1721104492321,13.07702864,3464.3,3464.2,0.1191078]
[1721104492629,17.16236761,3464.3,3464.2,0.1191078]
[1721104493039,15.96360864,3464.3,3464.2,0.1191078]
[1721104493349,17.16236761,3464.3,3464.2,0.1191078]
[1721104493558,15.96360864,3464.3,3464.2,0.1191078]
[1721104493863,17.16275465,3464.3,3464.2,0.1191078]
[1721104494218,15.96360864,3464.3,3464.2,0.1191078]
[1721104494516,17.46205736,3464.3,3464.2,0.1191078]
[1721104495117,17.46280981,3464.3,3464.2,0.1191078]
[1721104496018,14.57622981,3464.3,3464.2,0.1191078]
[1721104496224,14.5767186,3464.3,3464.2,0.1191078]
[1721104496523,13.07695826,3464.3,3464.2,0.1191078]
[1721104497341,14.22518899,3464.3,3464.2,0.1191078]
[1721104498332,12.446104,3464.3,3464.2,0.1191078]
[1721104498532,14.22510141,3464.3,3464.2,0.1191078]
[1721104499436,14.22510141,3464.3,3461.8,1.50671091]
[1721104499437,2.3119,3463.5,3461.8,1.50671091]
[1721104499643,2.3119,3463.5,3461.7,0.60357335]
[1721104499644,1.20101615,3462.2,3461.5,2.4902]
[1721104499818,2.699,3462.9,3461.5,2.4902]
[1721104499819,1.20101615,3462.4,3461.6,2.4902]
[1721104500016,4.80077827,3463.3,3461.6,2.4902]
[1721104500017,0.63071319,3462.3,3461.8,2.4162]
[1721104500223,1.20101615,3462.5,3461.8,2.4162]
[1721104500465,1.83172545,3462.4,3461.8,2.4162]
[1721104500633,0.6307093,3462.3,3461.8,2.4162]
[1721104500963,1.20101615,3462.4,3461.8,2.4162]
[1721104501122,0.63067448,3462.3,3461.8,2.4162]
[1721104501337,1.20101615,3462.4,3461.8,2.4162]
[1721104501596,5.888,3462.6,3461.8,2.4162]
[1721104501767,1.20156705,3462.3,3461.8,2.4162]
[1721104501940,0.63065608,3462.2,3461.8,2.4162]
[1721104502439,0.63082813,3462.1,3461.8,2.4162]
[1721104502643,1.20156705,3462.4,3461.8,2.4162]
[1721104502847,2.88783,3462.8,3462.0,2.2516]
[1721104502848,1.20156705,3462.6,3462.0,2.2516]
[1721104503047,1.80235058,3463.1,3461.8,0.530511]
[1721104503048,1.20156705,3463.1,3462.3,2.88818]
[1721104503282,7.74693987,3464.2,3462.5,2.2516]
[1721104503283,0.63092458,3463.0,3462.5,2.2516]
[1721104503570,4.38930882,3463.4,3462.6,1.118978]
[1721104503571,1.20156705,3463.3,3462.6,1.118978]
[1721104503775,2.88735,3463.4,3462.6,1.118978]
[1721104503776,0.63091164,3463.2,3462.6,1.118978]
[1721104503940,4.08891705,3463.4,3462.6,1.118978]
[1721104504135,1.83264695,3463.3,3462.6,1.118978]
[1721104504336,0.6310799,3463.2,3462.6,1.118978]
[1721104506592,1.83264695,3463.2,3462.6,1.118978]
[1721104506809,0.6310799,3463.1,3462.6,1.118978]
[1721104507158,1.20156705,3463.2,3462.6,1.118978]
[1721104507364,0.63109067,3463.1,3462.6,1.118978]
[1721104507679,1.83265772,3463.1,3462.5,2.2516]
[1721104507867,0.63109067,3463.0,3462.5,2.2516]
[1721104508288,1.83265772,3463.0,3462.5,2.2516]
[1721104508603,0.63109067,3462.9,3462.5,2.2516]
[1721104508774,4.08921705,3463.1,3462.5,2.2516]
[1721104509095,0.63108366,3463.0,3462.5,2.2516]
[1721104510501,4.08921705,3463.1,3462.5,2.2516]
[1721104510796,0.63109004,3463.0,3462.5,2.2516]
[1721104511007,3.51877004,3463.0,3462.5,2.2516]
[1721104511173,0.63109004,3462.9,3462.5,2.2516]
[1721104513925,2.88768,3463.0,3462.5,2.2516]
[1721104514229,0.630926,3462.9,3462.5,2.2516]
[1721104514387,0.63091979,3462.9,3462.5,2.2516]
[1721104516913,2.88768,3463.0,3462.5,2.2516]
[1721104517117,0.63077059,3462.9,3462.5,2.2516]
[1721104518875,1.20111738,3463.1,3462.5,2.47676]
[1721104519030,1.20111738,3463.4,3462.7,2.4045]
[1721104519223,0.63064899,3463.3,3462.8,0.55]
[1721104519464,1.20111738,3463.6,3462.8,1.211765]
[1721104519682,0.63063501,3463.5,3462.8,1.211765]
[1721104519964,1.50139672,3463.8,3462.8,1.211765]
[1721104519965,0.63064403,3463.4,3463.2,2.88748]
[1721104520273,0.63064403,3463.4,3462.8,1.211765]
[1721104520274,1.20111738,3464.3,3463.6,2.4045]
[1721104520438,0.63070702,3464.2,3463.7,0.55]
[1721104520623,1.20111738,3464.5,3463.7,3.43708]
[1721104520832,0.63070525,3464.4,3463.7,3.43708]
[1721104521032,0.63070525,3464.4,3463.8,3.759836]
[1721104521272,10.20609,3464.9,3464.0,2.4045]
[1721104521273,1.20111738,3464.8,3464.0,2.4045]
[1721104521449,1.20111738,3464.8,3464.1,0.55]
[1721104521450,0.63068798,3464.7,3464.1,0.55]
[1721104521832,1.20111738,3464.9,3464.1,0.55]
[1721104522174,0.63055241,3464.8,3464.1,0.9327376]
[1721104522588,1.83166979,3464.8,3464.1,0.9327376]
[1721104522790,3.51682241,3464.7,3464.1,0.55]
[1721104523102,2.88644,3464.5,3464.0,2.4045]
[1721104523380,0.63055241,3464.4,3464.0,2.4045]
[1721104523591,2.88644,3464.5,3464.0,2.4045]
[1721104523752,0.630539,3464.4,3464.0,2.4045]
[1721104523952,2.88644,3464.5,3464.0,2.4045]
[1721104524167,0.63057722,3464.4,3464.0,2.4045]
[1721104524368,3.51709722,3464.4,3464.0,2.4045]
[1721104524589,2.88652,3464.4,3464.0,2.4045]
[1721104525387,0.63057329,3464.3,3463.4,2.4045]
[1721104525549,0.63057329,3464.3,3463.5,0.55]
[1721104525749,1.83078702,3464.3,3463.5,0.55]
[1721104525948,0.63057329,3464.2,3463.5,0.55]
[1721104526170,3.51730329,3464.2,3463.5,0.55]
[1721104526361,2.88688,3464.0,3463.4,2.4045]
[1721104528775,2.88682,3464.1,3463.4,2.4045]
[1721104530491,2.88693,3463.9,3463.4,2.4045]
[1721104530679,2.88693,3463.9,3463.0,5.364]
[1721104530680,2.887,3463.8,3463.0,5.364]
[1721104530858,2.887,3463.8,3463.1,0.55]
[1721104531059,2.887,3463.8,3463.1,3.55]
[1721104532154,2.88708,3463.7,3463.1,3.55]
[1721104532501,2.88725,3463.5,3463.0,2.364]
[1721104533555,2.88717,3463.6,3463.0,2.364]
[1721104535571,0.63079115,3463.5,3463.0,2.364]
[1721104535786,2.88717,3463.6,3463.0,2.364]
[1721104536094,3.80441081,3463.6,3463.0,2.364]
[1721104536399,2.88726,3463.5,3463.0,2.364]
[1721104536895,0.91724081,3463.6,3463.0,2.364]
[1721104537085,2.88712,3463.7,3463.0,2.364]
[1721104537403,0.63076524,3463.6,3463.0,2.364]
[1721104537819,3.51796524,3463.6,3463.0,2.364]
[1721104537969,0.63062241,3463.5,3463.0,2.364]
[1721104538370,2.8872,3463.6,3463.0,2.364]
[1721104538884,4.08754053,3463.8,3463.0,2.364]
[1721104539065,0.63065024,3463.7,3463.0,2.364]
[1721104539265,3.51780024,3463.7,3463.0,2.364]
[1721104539493,0.63065024,3463.6,3463.0,2.364]
[1721104540009,2.88715,3463.7,3463.0,2.364]
[1721104540213,0.63064439,3463.6,3463.0,2.364]
[1721104540392,3.51781439,3463.6,3463.0,2.364]
[1721104540598,2.88717,3463.6,3463.0,2.364]
[1721104540810,1.20054053,3463.8,3463.1,0.55]
[1721104540991,0.63053859,3463.7,3463.1,0.55]
[1721104542502,1.83107912,3463.7,3463.1,0.55]
[1721104542769,0.63053859,3463.6,3463.1,0.55]
[1721104543326,1.20054053,3463.7,3463.1,0.55]
[1721104543525,0.63034481,3463.6,3463.1,0.55]
[1721104543679,0.63035005,3463.6,3463.1,0.55]
[1721104543875,4.40186227,3463.8,3463.1,0.55]
[1721104544214,1.82982432,3463.7,3463.1,0.55]
[1721104544515,0.63037515,3463.6,3463.1,0.55]
[1721104544818,4.40186227,3463.8,3463.1,0.55]
[1721104545134,0.63033843,3463.7,3463.1,0.55]
[1721104545476,1.8297876,3463.7,3463.1,0.55]
[1721104545672,0.63033843,3463.6,3463.1,0.55]
[1721104545894,4.40186227,3463.8,3463.1,0.55]
[1721104546206,1.82973296,3463.7,3463.1,0.55]
[1721104546429,0.63028379,3463.6,3463.1,0.55]
[1721104546709,0.63028644,3463.5,3463.0,2.364]
[1721104546878,3.47733526,3463.6,3463.0,2.364]
[1721104547213,0.63031307,3463.5,3463.0,2.364]
[1721104548477,3.51757307,3463.5,3463.0,2.364]
[1721104548680,2.88726,3463.5,3463.0,2.364]
[1721104548936,0.4676767,3463.4,3463.0,2.364]
[1721104555878,2.88742,3463.3,3462.7,2.4068]
[1721104558619,2.88768,3463.0,3462.5,3.0]
[1721104558799,2.88768,3463.0,3462.4,3.0]
[1721104559631,1.19903462,3463.4,3462.4,3.0]
[1721104559632,2.88756,3463.2,3462.4,3.0]
[1721104560249,4.08637462,3463.4,3462.4,6.830141]
[1721104560250,1.19903462,3463.4,3462.4,6.830141]
[1721104560419,0.62957883,3463.3,3462.7,1.125]
[1721104560597,0.62957883,3463.3,3462.8,2.4068]
[1721104561658,1.19903462,3463.4,3462.8,2.4068]
[1721104561955,0.62982075,3463.3,3462.8,2.4068]
[1721104562353,0.6298203,3463.2,3462.8,2.4068]
[1721104562519,1.19903462,3463.4,3462.8,2.4068]
[1721104562722,0.62997394,3463.3,3462.8,2.4068]
[1721104563316,1.42314608,3463.3,3462.8,2.4068]
[1721104563518,0.62997394,3463.2,3462.8,2.4068]
[1721104563919,0.62997394,3463.1,3462.8,2.4068]
[1721104564135,1.19903462,3463.3,3462.8,2.4068]
[1721104564332,0.62980201,3463.2,3462.8,2.4068]
[1721104564870,2.88769,3463.0,3462.4,3.0]
[1721104565032,2.88766,3463.1,3462.2,3.5249]
[1721104565231,2.88766,3463.1,3462.3,3.0]
[1721104565430,2.88766,3463.1,3461.9,5.88856]
[1721104565431,4.01286,3462.8,3461.9,2.3999]
[1721104565672,0.6298451,3462.7,3461.9,5.28848]
[1721104566461,0.6298451,3462.7,3462.0,4.01348]
[1721104566669,1.19903462,3462.9,3462.1,2.88841]
[1721104566825,0.62970624,3462.8,3462.2,2.3472]
[1721104567022,0.62970624,3462.8,3462.6,2.3727]
[1721104567250,1.50018381,3463.2,3462.6,6.38568]
[1721104567251,1.19903462,3463.2,3462.6,6.38568]
[1721104567556,0.62966917,3463.1,3462.7,1.477384]
[1721104567720,1.19903462,3463.3,3462.7,1.477384]
[1721104567922,0.62966023,3463.2,3462.7,1.477384]
[1721104568164,0.62966023,3463.2,3462.7,0.55]
[1721104568748,0.62966213,3463.1,3462.7,0.55]
[1721104568944,0.62966213,3463.0,3462.7,0.55]
[1721104569226,2.32545843,3463.3,3462.7,0.55]
[1721104569427,1.83024594,3463.2,3462.7,0.55]
[1721104569629,0.62978751,3463.1,3462.7,0.55]
[1721104570448,1.83024594,3463.1,3462.7,0.55]
[1721104570651,1.83024594,3463.0,3462.7,0.55]
[1721104570858,0.62978751,3462.9,3462.2,3.0]
[1721104571034,1.83024594,3462.9,3462.1,2.3727]
[1721104571240,0.62978751,3462.8,3462.1,2.3727]
[1721104571468,0.62978751,3462.7,3462.1,2.3727]
[1721104571683,1.20045843,3462.9,3462.1,2.3727]
[1721104571969,0.62974215,3462.8,3462.1,2.3727]
[1721104572341,0.62978708,3462.7,3462.2,0.55]
[1721104572650,0.62978708,3462.6,3462.2,3.55]
[1721104572960,1.20149201,3462.8,3462.2,3.55]
[1721104573154,0.62986562,3462.7,3462.2,3.55]
[1721104574739,4.08925201,3462.9,3462.2,3.55]
[1721104574740,0.6296736,3462.6,3462.2,3.55]
[1721104574943,4.08925201,3462.9,3462.2,4.431118]
[1721104575186,1.83095175,3462.8,3462.2,3.55]
[1721104575348,0.6296411,3462.7,3462.2,3.55]
[1721104575855,1.83095175,3462.7,3462.2,3.55]
[1721104576056,0.6296411,3462.6,3462.2,3.55]
[1721104576442,0.6296411,3462.5,3462.2,3.55]
[1721104576641,0.6296411,3462.4,3462.2,3.55]
[1721104576938,1.20131065,3462.7,3462.2,3.55]
[1721104577143,0.62968279,3462.6,3462.2,3.55]
[1721104577540,0.62968279,3462.6,3462.2,3.0]
[1721104577772,0.62968279,3462.6,3462.1,2.3727]
[1721104577973,1.25172196,3462.6,3462.1,2.3727]
[1721104578177,0.62968279,3462.5,3462.1,2.3727]
[1721104578578,1.82334982,3462.6,3462.1,2.3727]
[1721104578579,0.62965939,3462.4,3462.1,2.3727]
[1721104578743,1.20147229,3462.6,3462.1,2.3727]
[1721104578944,0.62965326,3462.5,3462.1,2.3727]
[1721104579683,1.20147229,3462.8,3462.1,6.087236]
[1721104579851,1.20147229,3462.8,3462.2,0.55]
[1721104579852,0.62967551,3462.7,3462.2,0.55]
[1721104580241,1.20147229,3462.9,3462.2,0.55]
[1721104580480,0.62973232,3462.8,3462.2,3.43833]
[1721104580846,0.62973232,3462.7,3462.2,3.43833]
[1721104581048,1.20147229,3463.0,3462.3,0.6637166]
[1721104581249,0.62958861,3462.9,3462.5,2.3229]
[1721104581484,0.62958861,3462.9,3462.6,0.55]
[1721104581699,1.20147229,3463.0,3462.6,0.55]
[1721104581899,0.62957673,3462.9,3462.6,0.55]
[1721104582107,1.20147229,3463.0,3462.6,0.55]
[1721104582285,0.62958529,3462.9,3462.6,0.55]
[1721104582615,0.62958529,3462.8,3462.6,3.43799]
[1721104582796,1.20147229,3463.1,3462.6,3.43799]
[1721104582959,0.62941075,3463.0,3462.6,3.43799]
[1721104583357,0.62941075,3463.0,3462.7,2.88791]
[1721104583558,0.62941075,3463.0,3462.8,0.55]
[1721104584892,0.6294036,3462.9,3462.8,0.55]
[1721104585066,0.62939436,3463.0,3462.8,0.55]
[1721104585264,0.62939436,3462.9,3462.8,0.55]
[1721104585669,0.62939436,3463.0,3462.8,0.55]
[1721104585874,0.62939436,3462.9,3462.8,0.55]
[1721104586398,0.62939436,3463.0,3462.8,0.55]
[1721104588108,1.20147229,3463.1,3462.8,0.55]
[1721104588311,0.62948526,3463.0,3462.8,0.55]
[1721104591509,0.6293509,3462.9,3462.8,0.55]
[1721104591713,0.6293509,3463.0,3462.8,0.55]
[1721104594340,0.9625757,3463.0,3462.3,2.88823]
[1721104594545,0.9625757,3463.0,3462.0,2.4699]
[1721104594546,1.83082319,3462.9,3462.0,2.4699]
[1721104594704,0.62904728,3462.8,3462.2,2.88828]
[1721104594910,0.62904728,3462.8,3462.3,5.88824]
[1721104595118,1.20147229,3463.0,3462.3,7.012895]
[1721104595447,0.6291361,3462.9,3462.3,7.012895]
[1721104595612,0.6291361,3462.8,3462.3,7.012895]
[1721104595947,0.6291361,3462.7,3462.4,0.55]
[1721104596146,1.20082485,3463.0,3462.4,0.55]
[1721104596443,0.629228,3462.9,3462.4,0.55]
[1721104596644,1.83005285,3462.9,3462.4,3.43815]
[1721104596938,0.629228,3462.8,3462.4,3.43815]
[1721104597343,1.20082485,3463.0,3462.5,3.531895]
[1721104597344,0.629228,3462.7,3462.5,3.531895]
[1721104597504,1.20082485,3463.0,3462.6,0.55]
[1721104597706,0.6293199,3462.9,3462.6,0.55]
[1721104597907,0.62931877,3462.8,3462.6,2.9536]
[1721104598214,1.20082485,3463.0,3462.6,2.9536]
[1721104598433,0.62946319,3462.9,3462.6,2.9536]
[1721104598640,1.83028804,3462.9,3462.6,2.9536]
[1721104598945,1.50164617,3463.1,3462.6,2.9536]
[1721104598946,0.62946319,3462.8,3462.7,5.77581]
[1721104599148,1.20082485,3463.3,3463.0,2.88766]
[1721104599448,0.62953982,3463.2,3463.0,2.88766]
[1721104599647,1.20082485,3463.4,3463.1,3.43758]
[1721104599814,0.62959382,3463.3,3463.1,3.43758]
[1721104600020,0.62959382,3463.2,3463.1,3.43758]
[1721104600355,0.62959382,3463.3,3463.1,3.43758]
[1721104600552,0.62959382,3463.2,3463.1,3.43758]
[1721104600749,0.62959382,3463.4,3463.1,3.43758]
[1721104600948,0.62959382,3463.4,3463.1,4.1278666]
[1721104601113,0.62959382,3463.4,3463.3,2.88741]
[1721104601316,0.62949185,3463.4,3463.3,3.43741]
[1721104601552,1.20151089,3463.5,3463.3,3.43741]
[1721104601771,0.62949185,3463.4,3463.3,3.43741]
[1721104601942,0.62926378,3463.4,3463.3,3.43741]
[1721104602546,0.62926378,3463.5,3463.3,3.43741]
[1721104602733,0.62926378,3463.4,3463.3,3.43741]
[1721104602932,0.62926325,3463.4,3463.3,3.43741]
[1721104603165,1.83077414,3463.5,3462.9,5.27544]
[1721104603343,0.62926325,3463.4,3462.9,5.27544]
[1721104603546,0.62926325,3463.4,3463.0,0.55]
[1721104603775,1.83077414,3463.4,3463.0,0.55]
[1721104603967,0.62926325,3463.3,3463.0,3.43765]
[1721104604349,0.62926325,3463.3,3463.0,0.55]
[1721104604667,0.62928262,3463.2,3462.9,0.55]
[1721104604868,1.53396083,3463.3,3462.7,3.4379]
[1721104605043,1.82990613,3463.2,3462.7,3.4379]
[1721104605368,0.62926246,3463.1,3462.5,2.88808]
[1721104605573,0.62926246,3463.1,3462.6,3.0]
[1721104606074,1.23259016,3463.1,3462.1,2.88838]
[1721104606278,3.53574367,3462.8,3461.5,2.4997]
[1721104606437,1.20064367,3462.4,3461.5,2.4997]
[1721104606661,1.82990613,3462.3,3461.6,2.88878]
[1721104606865,0.62926246,3462.2,3461.6,2.88878]
[1721104607287,0.62926246,3462.1,3461.6,2.88878]
[1721104607597,1.20064367,3462.3,3461.6,2.88878]
[1721104607766,0.62903845,3462.2,3461.6,2.88878]
[1721104608095,1.82968212,3462.2,3461.6,2.88878]
[1721104608297,0.62903845,3462.1,3461.6,2.88878]
[1721104608498,1.20064367,3462.3,3461.6,2.88878]
[1721104608689,0.62901638,3462.2,3461.6,2.88878]
[1721104609595,0.62901638,3462.2,3461.5,5.38861]
[1721104609902,0.62901638,3462.2,3461.6,0.55]
[1721104610303,0.62901638,3462.1,3461.6,0.55]
[1721104610509,1.20064367,3462.3,3461.6,0.55]
[1721104610670,0.6290848,3462.2,3461.6,0.55]
[1721104610870,4.38771424,3462.5,3461.6,0.55]
[1721104610871,0.62908521,3462.1,3461.6,0.55]
[1721104611085,1.20064367,3462.4,3461.5,5.38861]
[1721104611294,0.62908383,3462.3,3461.5,5.38861]
[1721104612019,0.62908383,3462.3,3461.7,2.88872]
[1721104612169,0.62908383,3462.3,3461.8,0.05776267]
[1721104612799,1.49875902,3462.7,3461.6,0.55]
[1721104612800,1.20064367,3462.7,3461.6,0.55]
[1721104613101,1.20064367,3462.9,3461.6,3.55]
[1721104613306,1.20064367,3462.9,3462.1,2.88841]
[1721104613307,0.62895742,3462.8,3462.1,2.88841]
[1721104613671,0.62895742,3462.8,3462.2,2.88829]
[1721104613909,0.62903848,3462.7,3462.2,2.88829]
[1721104614072,1.20064367,3462.9,3462.2,2.88829]
[1721104614270,1.82966765,3462.8,3462.2,2.88829]
[1721104614467,0.62902398,3462.7,3462.0,2.8885]
[1721104615403,0.62902398,3462.7,3462.2,2.88832]
[1721104615903,0.62902398,3462.7,3462.0,2.8885]
[1721104616107,0.62902398,3462.7,3461.9,2.88856]
[1721104616108,1.82966765,3462.7,3461.9,2.88856]
[1721104616402,0.62902398,3462.6,3461.9,2.88856]
[1721104617033,0.62902398,3462.6,3461.7,3.79822]
[1721104617034,0.62902398,3462.6,3462.0,2.8885]
[1721104617230,1.20064367,3462.9,3462.1,3.43838]
[1721104617436,1.82972202,3462.8,3462.1,3.43838]
[1721104617631,0.62907835,3462.7,3462.1,3.43838]
[1721104617793,0.62910381,3462.6,3462.1,3.43838]
[1721104617998,1.19858733,3462.8,3462.1,0.55]
[1721104618198,0.62909512,3462.7,3462.0,0.55]
[1721104619228,0.62909512,3462.7,3462.0,3.43848]
[1721104620195,1.19858733,3462.8,3462.1,2.88841]
[1721104620407,0.62922691,3462.7,3462.1,2.88841]
[1721104620739,0.62927583,3462.6,3462.1,3.521117]
[1721104620920,1.19858733,3462.9,3462.2,5.38802]
[1721104621126,0.62944273,3462.8,3462.2,5.93802]
[1721104621436,0.62944273,3462.8,3462.2,6.8839497]
[1721104621639,0.62944273,3462.8,3462.2,5.93802]
[1721104621843,0.62944273,3462.8,3462.2,0.55]
[1721104622138,0.62944322,3462.7,3462.1,0.55]
[1721104622330,1.19906452,3462.9,3462.1,0.55]
[1721104622533,0.62942783,3462.8,3462.1,0.55]
[1721104622844,2.97226465,3462.8,3462.0,0.55]
[1721104623141,0.62939546,3462.7,3462.0,3.4385]
[1721104623643,1.19906452,3463.0,3462.1,2.88841]
[1721104623805,0.6294062,3462.9,3462.2,2.88831]
[1721104624007,1.19906452,3463.1,3462.3,0.0577535]
[1721104624320,1.19906452,3463.6,3462.8,2.88782]
[1721104624536,1.82850533,3463.5,3462.8,2.88782]
[1721104624730,0.62944081,3463.4,3462.8,2.88782]
[1721104624922,1.19906452,3463.6,3462.8,2.88782]
[1721104625122,0.62938975,3463.5,3462.8,2.83782]
[1721104626456,1.51931506,3463.6,3462.8,2.83782]
[1721104626610,0.62942302,3463.5,3462.8,2.83782]
[1721104626811,1.51931506,3463.6,3462.8,2.83782]
[1721104627011,0.62942931,3463.5,3462.8,2.83782]
[1721104628322,0.33478044,3463.4,3462.8,2.83782]
[1721104629220,1.51931506,3463.6,3462.8,2.83782]
[1721104629619,0.62937183,3463.5,3462.8,2.83782]
[1721104629839,4.08615008,3463.7,3462.8,2.83782]
[1721104630055,0.62926621,3463.6,3462.8,2.83782]
[1721104632139,0.62926621,3463.6,3462.7,2.88791]
[1721104632342,0.62926621,3463.6,3462.8,3.43783]
[1721104632578,0.47154163,3463.5,3462.8,3.43783]
[1721104633385,4.08562538,3463.8,3462.8,3.43783]
[1721104633544,0.62931254,3463.7,3462.8,3.43783]
[1721104635947,3.51641254,3463.7,3462.8,3.43783]
[1721104636147,0.62926278,3463.6,3462.8,3.43783]
[1721104637307,0.62926278,3463.6,3462.9,2.88775]
[1721104637503,1.3295946,3463.6,3462.9,2.88775]
[1721104637807,0.70033182,3463.6,3462.9,2.88775]
[1721104637960,5.17534,3463.9,3463.0,0.05774273]
[1721104638156,5.17534,3463.9,3463.1,2.88757]
[1721104638157,0.62927794,3463.8,3463.1,2.88757]
[1721104638360,4.08531538,3464.1,3463.1,5.18617]
[1721104638603,1.91961227,3464.0,3463.2,2.88747]
[1721104638806,0.62929573,3463.9,3463.1,2.2986]
[1721104639407,1.19855538,3464.2,3463.5,2.88724]
[1721104639591,0.62945285,3464.1,3463.5,2.88724]
[1721104639781,0.86816986,3464.1,3463.5,2.88724]
[1721104641314,1.19855538,3464.4,3463.6,5.18576]
[1721104641615,1.19855538,3464.7,3463.9,2.88689]
[1721104641761,13.87383538,3464.9,3463.9,2.88689]
[1721104641961,0.62978576,3464.8,3463.9,2.88689]
[1721104642299,0.71836211,3464.7,3463.9,2.88689]
[1721104642461,1.19855538,3465.1,3464.2,2.88659]
[1721104642810,3.96699499,3465.3,3464.3,2.88657]
[1721104642811,0.62977729,3465.0,3464.3,2.88657]
[1721104642978,1.19855538,3465.2,3464.3,2.88657]
[1721104643165,5.35497,3465.3,3464.3,2.88657]
[1721104643166,0.62980382,3465.1,3464.3,2.88657]
[1721104643368,0.71833292,3465.0,3464.3,2.88657]
[1721104644704,0.71833292,3465.0,3464.5,2.8864]
[1721104644910,2.4692,3465.3,3464.5,2.8864]
[1721104647712,2.4692,3465.3,3464.3,2.88657]
[1721104647881,2.4692,3465.3,3464.1,5.18533]
[1721104647882,2.88585,3465.2,3464.1,5.18533]
[1721104648224,2.88593,3465.1,3464.1,2.88673]
[1721104648423,2.88617,3464.8,3463.7,2.88707]
[1721104648722,2.2948,3464.4,3463.1,5.22897]
[1721104649072,2.88676,3464.1,3463.1,5.22897]
[1721104649671,2.88676,3464.1,3462.8,2.88782]
[1721104649906,2.88701,3463.8,3462.8,2.88782]
[1721104650110,3.464387,3463.8,3462.9,2.88772]
[1721104650266,3.464387,3463.8,3462.7,2.88787]
[1721104650472,3.464387,3463.8,3462.6,2.888]
[1721104651203,3.464387,3463.8,3462.9,2.88773]
[1721104651378,0.577377,3463.8,3462.9,2.88773]
[1721104651715,2.88676,3464.1,3462.9,2.88773]
[1721104652285,2.88698,3463.9,3462.9,2.88773]
[1721104652485,2.88676,3464.1,3463.0,2.88765]
[1721104652689,2.88659,3464.3,3463.2,2.88749]
[1721104652909,2.88676,3464.1,3463.2,2.88749]
[1721104653220,0.577335,3464.0,3463.2,2.88749]
[1721104653420,0.577335,3464.0,3463.0,2.88765]
[1721104653633,3.464165,3464.0,3462.9,2.88774]
[1721104654125,3.464165,3464.0,3463.0,2.88759]
[1721104654808,3.464165,3464.0,3462.8,2.88783]
[1721104655126,2.88708,3463.7,3462.7,3.0]
[1721104655336,2.88732,3463.5,3462.5,3.0]
[1721104655620,2.88732,3463.5,3462.6,2.88799]
[1721104657016,2.88708,3463.7,3462.6,2.88799]
[1721104657184,2.88717,3463.6,3462.6,2.88799]
[1721104657391,3.73190165,3463.6,3462.6,2.88799]
[1721104660534,0.84473165,3463.6,3462.9,2.88767]
[1721104661106,0.84473165,3463.6,3462.8,2.88782]
[1721104661391,5.2138,3463.8,3462.9,2.88774]
[1721104662426,2.3268,3463.8,3463.0,2.88766]
[1721104662624,2.8868,3464.1,3463.0,2.88766]
[1721104662920,2.8868,3464.1,3463.1,0.05774339]
[1721104663124,0.92438468,3464.0,3463.0,2.88766]
[1721104663326,0.92438468,3464.0,3463.1,2.88756]
[1721104666715,0.92438468,3464.0,3463.2,2.8875]
[1721104667013,6.35716682,3464.2,3463.2,2.8875]
[1721104667201,0.62953588,3464.1,3463.2,2.8875]
[1721104667838,2.2736,3464.2,3463.2,2.8875]
[1721104668261,5.16029,3464.2,3463.2,2.8875]
[1721104668751,0.62954821,3464.1,3463.2,2.8875]
[1721104668950,5.16029,3464.2,3463.3,0.577516]
[1721104669104,0.62952093,3464.1,3463.2,2.8875]
[1721104670404,3.51627093,3464.1,3463.2,2.8875]
[1721104670609,2.88675,3464.1,3463.2,2.8875]
[1721104672455,5.77356,3464.1,3463.0,2.88766]
[1721104672618,5.77356,3464.1,3463.1,2.88757]
[1721104672619,2.88675,3464.1,3463.1,2.88757]
[1721104672947,0.92453612,3464.0,3463.1,2.88757]
[1721104673835,3.47180117,3464.2,3463.2,2.88748]
[1721104674029,0.62941634,3464.1,3463.2,2.88748]
[1721104674857,3.51617634,3464.1,3463.2,2.88748]